Cogmind - Beta 14 @@@ ROGUE MODE // 2024.12.01 @ 00:16:07 Player: GR4C3 Result: Destroyed by D-53 Grenadier with Mini Grenade Launcher Performance ------------- Evolutions (1) 500 Regions Visited (4) 800 Robots Destroyed (22) 110 Value Destroyed (421) 421 Prototype IDs (2) 40 Alien Tech Used (0) 0 Bonus (0) 0 TOTAL SCORE: 1871 Bonus ------- None Cogmind --------- Core Integrity 0/400 Matter 224/300 Energy 99/100 System Corruption 12% Temperature Cool (0) Movement Core (50) Location -9/Mines Parts ------- > --- POWER (1) -------- (None) > --- PROPULSION (3) --- (None) > --- UTILITY (3) ------ (None) > --- WEAPON (2) ------- (None) > --- INVENTORY (5) ---- Improved Heat Sink EM Pulse Gun Field Laser Heavy Particle Cannon Shotgun Peak State ------------ > --- POWER ------------ Light Angular Momentum Engine > --- PROPULSION ------- Aluminum Leg Aluminum Leg Carbon-fiber Leg > --- UTILITY ---------- Medium Storage Unit Advanced Visual Processing Unit Seismic Detector > --- WEAPON ----------- Assault Cannon Assault Cannon > --- INVENTORY -------- Heavy Ion Engine Aluminum Leg Improved Heat Sink EM Pulse Gun Heavy EM Pulse Gun Shock Rifle Field Laser Heavy Particle Cannon Light Assault Rifle Shotgun [Rating: 23] Favorites ----------- Power Light Ion Engine Engine Light Ion Engine Power Core Light Nuclear Core Propulsion Aluminum Leg Leg Aluminum Leg Utility Advanced Visual Processing Unit Device Seismic Detector Storage Small Storage Unit Processor Advanced Visual Processing Unit Weapon Assault Cannon Energy Gun Field Laser Energy Cannon Heavy Particle Cannon Ballistic Gun Light Assault Rifle Ballistic Cannon Assault Cannon Build | -11 -10 -10 -9 -9 ------- Run | Yrd Mat Min Mat Min Slots Evolved 2 | . . . 2 . Power . | . . . . . Propulsion 1 | . . . 1 . Utility 1 | . . . 1 . Weapon . | . . . . . Parts Attached 49 | 8 10 10 20 1 Power 6 | 1 2 1 2 . Engine 5 | 1 1 1 2 . Core 1 | . 1 . . . Reactor . | . . . . . Propulsion 11 | 2 3 3 3 . Treads . | . . . . . Leg 11 | 2 3 3 3 . Wheel . | . . . . . Hover . | . . . . . Flight . | . . . . . Utility 10 | 3 2 2 3 . Device 6 | 2 1 1 2 . Storage 3 | 1 1 . 1 . Processor 1 | . . 1 . . Hackware . | . . . . . Protection . | . . . . . Artifact . | . . . . . Weapon 22 | 2 3 4 12 1 Energy Gun 12 | 1 2 3 6 . Energy Cannon 2 | . . . 2 . Ballistic Gun 5 | 1 1 1 2 . Ballistic Cannon 3 | . . . 2 1 Launcher . | . . . . . Special Weapon . | . . . . . Impact Weapon . | . . . . . Slashing Weapon . | . . . . . Piercing Weapon . | . . . . . Special Melee Weapon . | . . . . . Unidentified Prototypes 2 | . . . 2 . Parts Lost 12 | . 3 1 . 8 Power 3 | . 1 1 . 1 Propulsion 3 | . . . . 3 Utility 4 | . 2 . . 2 Weapon 2 | . . . . 2 Highest Loss Streak 8 | . 3 1 . 8 To Critical Strikes . | . . . . . Average Slot Usage (%) 98 | . 97 99 98 81 Engine 7 | . 8 2 10 9 Core 4 | . 5 10 . . Leg 30 | . 28 28 32 25 Device 11 | . 18 9 10 6 Storage 11 | . 6 14 11 11 Processor 6 | . . 4 11 9 Energy Gun 14 | . 14 26 8 . Ballistic Gun 4 | . 13 1 4 . Ballistic Cannon 4 | . . . 7 18 Peak Build Rating 23 | 9 12 16 23 23 Average Rating 15 | 6 9 14 19 19 On Entrance 11 | . 9 11 16 23 Naked Turns 4 | . . . . 4 Heaviest Build 33 | 13 16 16 30 33 Greatest Support 35 | 20 20 25 35 35 Greatest Overweight (x) 3 | 1 . . . 3 Average Overweight (x) . | . . . . . Largest Inventory Capacity 10 | 8 8 8 10 10 Average Capacity 8 | 7 6 8 9 9 Most Carried 10 | 5 8 8 10 10 Average Carried 7 | 2 5 7 8 9 Final Capacity 10 | 5 8 8 10 5 Final Carried 9 | 4 7 8 9 5 Class Distribution -------------------- 67% | Mutant 32% | Scavenger-Mutant Dominant Class ---------------- Mutant | -10/Materials Scavenger-Mutant | -10/Mines Mutant | -9/Materials Mutant | -9/Mines Resources | -11 -10 -10 -9 -9 ----------- Run | Yrd Mat Min Mat Min Matter Collected 787 | 221 202 102 262 . Remotely . | . . . . . Salvage Created 682 | 104 341 53 146 38 Parts 47 | 10 24 3 10 . Haulers Intercepted . | . . . . . Recyclers Shooed 1 | . 1 . . . Parts Field Recycled . | . . . . . Retrieved Matter . | . . . . . Parts Self-Destructed . | . . . . . Prevented . | . . . . . Kills | -11 -10 -10 -9 -9 ------- Run | Yrd Mat Min Mat Min Combat Hostiles Destroyed 19 | . 8 3 3 5 Guns 13 | . 8 3 2 . Cannons 6 | . . . 1 5 Classes Destroyed 9 | 2 4 . 2 1 Worker 1 | . 1 . . . Tunneler 3 | 3 . . . . Recycler 1 | 1 . . . . Operator 2 | . . . 2 . Watcher 1 | . 1 . . . Swarmer 7 | . 3 3 1 . Grunt 6 | . 5 . 1 . Sentry 1 | . . . 1 . Assembled 5 | . . . . 5 Best Kill Streak 5 | 3 3 1 1 5 Combat Bots Only 5 | . 3 1 1 5 Max Kills in Single Turn 2 | 1 1 1 1 2 Gunslinging . | . . . . . Exploded . | . . . . . Melee . | . . . . . Uniques/NPCs Destroyed . | . . . . . Combat | -11 -10 -10 -9 -9 -------- Run | Yrd Mat Min Mat Min Hostile Shots Fired 192 | . 65 45 26 56 Missed 43 | . 12 12 9 10 Damage Taken 2141 | . 597 264 237 1043 Core 499 | . 65 30 50 354 Absorbed by Shields . | . . . . . Regen/Repaired (Parts) 45 | . . . 45 . Core Remaining (%) 81 | 100 . 62 . . Volleys Fired 107 | 10 46 18 21 12 Largest 2 | 2 2 2 2 2 Hottest 125 | 60 105 103 125 101 Shots Fired 201 | 20 92 28 40 21 Gun 165 | 20 92 28 25 . Cannon 36 | . . . 15 21 Launcher . | . . . . . Special . | . . . . . Kinetic 102 | 10 45 12 14 21 Thermal 56 | 10 33 6 7 . Explosive . | . . . . . Electromagnetic 43 | . 14 10 19 . Robot Hit Streak 10 | 7 8 5 6 10 Robot Miss Streak 6 | 2 4 5 4 6 Penetration Max 3 | . . . . 3 Secondary Targets 2 | . 2 . . . Max Gunslinging Chain 1 | . 1 . . . Shots Hit Robots 104 | 15 47 12 18 12 Core Hits 48 | 7 22 3 7 9 Critical Kills 4 | 1 . . . 3 Critical Parts Destroyed 1 | . . . . 1 Critical Strikes 6 | 1 . . 1 4 Destroy 5 | 1 . . . 4 Corrupt 1 | . . . 1 . Melee Attacks . | . . . . . Impact . | . . . . . Slashing . | . . . . . Piercing . | . . . . . Sneak Attacks . | . . . . . Combat Hostiles . | . . . . . Follow-up Attacks . | . . . . . Damage Inflicted 1635 | 147 515 137 394 442 Guns 1038 | 147 515 137 239 . Cannons 541 | . . . 101 440 Explosions 31 | . . . 31 . Melee . | . . . . . Ramming 25 | . . . 23 2 Kinetic 843 | 57 189 63 94 440 Thermal 391 | 90 209 36 56 . Explosive . | . . . . . Electromagnetic 376 | . 117 38 221 . Impact . | . . . . . Slashing . | . . . . . Piercing . | . . . . . Highest Corruption 12 | . . . . 12 Average Corruption 8 | . . . . 8 Corruption Purged . | . . . . . Corruption Blocked . | . . . . . Effects 1 | . . . . 1 Message Errors 1 | . . . . 1 Overload Shots . | . . . . . Overflow Damage 19 | . . . . 19 Projectiles 19 | . . . . 19 Explosions . | . . . . . Melee . | . . . . . Knockbacks . | . . . . . Impact . | . . . . . Kinetic . | . . . . . Secondary . | . . . . . Self-Inflicted Damage . | . . . . . Shots . | . . . . . Rammed . | . . . . . Targets Rammed 6 | . . . 4 2 Kicked 6 | . . . 4 2 Crushed . | . . . . . Highest Temperature 209 | 20 138 196 209 174 Average Temperature 57 | 13 42 92 64 69 Received Heat Transfer 351 | . 279 . 72 . Siege Activations . | . . . . . Robots Corrupted . | . . . . . Combat Hostiles . | . . . . . Parts Fried 1 | . . . 1 . Impact Corruptions . | . . . . . Robots Melted . | . . . . . Combat Hostiles . | . . . . . Parts Melted 1 | . . . 1 . Heat Transferred 836 | 200 475 74 87 . Parts Sabotaged . | . . . . . Parts Stolen . | . . . . . Parts Stripped . | . . . . . Power Chain Reactions 1 | . . . 1 . Alert | -11 -10 -10 -9 -9 ------- Run | Yrd Mat Min Mat Min Peak Influence 225 | 20 225 122 152 7 Initial 87 | . 13 87 17 6 Average 61 | 8 110 64 55 3 Maximum Alert Level 1 | . 1 . . . Low Security (%) 96 | 100 80 100 100 100 Level 1 3 | . 19 . . . Level 2 . | . . . . . Level 3 . | . . . . . Level 4 . | . . . . . Level 5 . | . . . . . High Security . | . . . . . Max Security . | . . . . . Squads Dispatched 5 | . 2 1 2 . Investigation 2 | . . 1 1 . Extermination . | . . . . . Reinforcement 3 | . 2 . 1 . Assault . | . . . . . Garrison . | . . . . . Intercept . | . . . . . Searches Triggered . | . . . . . Construction Impeded . | . . . . . Haulers Reinforced . | . . . . . Active Scanning Responses . | . . . . . Cargo Convoy Interrupts . | . . . . . Stealth | -11 -10 -10 -9 -9 --------- Run | Yrd Mat Min Mat Min Distress Signals 4 | . 3 . 1 . Communications Jammed . | . . . . . Distress Signals . | . . . . . Times Spotted 51 | . 13 5 16 17 Peak Tracking Total 15 | . 4 2 5 15 Tactical Retreats 2 | . . 1 1 . Traps | -11 -10 -10 -9 -9 ------- Run | Yrd Mat Min Mat Min Traps Triggered 1 | . . . 1 . Indirectly . | . . . . . Trap Hack Attempts . | . . . . . Triggered . | . . . . . Disarmed 1 | . . . 1 . Reprogrammed . | . . . . . Reused . | . . . . . Traps Extracted . | . . . . . Installed . | . . . . . Triggered . | . . . . . Machines | -11 -10 -10 -9 -9 ---------- Run | Yrd Mat Min Mat Min Machines Disabled . | . . . . . Max in Single Turn . | . . . . . Machines Repaired . | . . . . . Machines Dismantled . | . . . . . Machines Sabotaged . | . . . . . Overloaded Fab Kills . | . . . . . Hacking | -11 -10 -10 -9 -9 --------- Run | Yrd Mat Min Mat Min Machines Accessed 4 | . . 1 3 . Terminals 2 | . . . 2 . Fabricators . | . . . . . Repair Stations 1 | . . . 1 . Recycling Units . | . . . . . Scanalyzers . | . . . . . Garrison Access . | . . . . . Total Hacks 6 | . . 1 5 . Successful 6 | . . 1 5 . Failed . | . . . . . Catastrophic . | . . . . . Database Lockouts . | . . . . . Manual . | . . . . . Terminals 3 | . . . 3 . Fabricators . | . . . . . Repair Stations 2 | . . . 2 . Recycling Units . | . . . . . Scanalyzers . | . . . . . Garrison Access . | . . . . . Terminal Hacks 4 | . . 1 3 . Open Door 1 | . . 1 . . Alert Level 1 | . . . 1 . Disarm Traps 1 | . . . 1 . Zone Layout 1 | . . . 1 . Fabricator Hacks . | . . . . . Repair Station Hacks 2 | . . . 2 . Scan Component 1 | . . . 1 . Repair 1 | . . . 1 . Recycling Unit Hacks . | . . . . . Scanalyzer . | . . . . . Garrison Access Hacks . | . . . . . Unauthorized Hacks . | . . . . . Terminals . | . . . . . Fabricators . | . . . . . Repair Stations . | . . . . . Recycling Units . | . . . . . Scanalyzers . | . . . . . Garrison Access . | . . . . . Data Cores Recovered 2 | . . . 2 . Used 1 | . . . 1 . Hacking Detections 1 | . . . 1 . Full Trace Events . | . . . . . Feedback Events . | . . . . . Feedback Blocked . | . . . . . Robot Schematics Acquired . | . . . . . Robots Built . | . . . . . Authchips . | . . . . . Time . | . . . . . Total Robot Build Rating . | . . . . . Part Schematics Acquired . | . . . . . Parts Built . | . . . . . Authchips . | . . . . . Time . | . . . . . Total Part Build Rating . | . . . . . Parts Repaired 1 | . . . 1 . Time 38 | . . . 38 . Parts Recycled . | . . . . . Recycled Matter . | . . . . . Retrieved Matter . | . . . . . Retrieved Components . | . . . . . Parts Scanalyzed . | . . . . . Part Schematics Acquired . | . . . . . Parts Damaged . | . . . . . Bothacking | -11 -10 -10 -9 -9 ------------ Run | Yrd Mat Min Mat Min Used RIF Installer . | . . . . . Robots Hacked . | . . . . . Non-combat . | . . . . . Combat . | . . . . . Robot Hacks Applied . | . . . . . Relay Couplers Released . | . . . . . Fabnet Peak Effective % . | . . . . . Robots Rewired . | . . . . . Allies Hacked . | . . . . . Hacks Repelled . | . . . . . Allies | -11 -10 -10 -9 -9 -------- Run | Yrd Mat Min Mat Min Total Allies . | . . . . . Largest Group . | . . . . . Highest-Rated Group . | . . . . . Highest-Rated Ally . | . . . . . Total Orders . | . . . . . Ally Attacks . | . . . . . Total Damage . | . . . . . Kills . | . . . . . Allies Corrupted . | . . . . . Allies Melted . | . . . . . Intel | -11 -10 -10 -9 -9 ------- Run | Yrd Mat Min Mat Min Robot Analysis Total . | . . . . . Derelict Logs Recovered 1 | . . 1 . . Drone Launches . | . . . . . Drone Recoveries . | . . . . . Exploration | -11 -10 -10 -9 -9 ------------- Run | Yrd Mat Min Mat Min Turns Passed 2055 | 141 351 630 841 92 Spaces Moved 1349 | 88 165 469 584 43 Core 27 | 18 . . . 9 Treads . | . . . . . Legs 1322 | 70 165 469 584 34 Wheels . | . . . . . Hover . | . . . . . Flight . | . . . . . Fastest Speed 50 | 50 120 120 120 50 Average Speed 118 | 107 120 120 120 110 Slowest Speed 200 | 120 120 120 120 200 Overloaded Moves . | . . . . . Propulsion Burnouts . | . . . . . Robots Hopped . | . . . . . Cave-ins Triggered . | . . . . . Exploration Rate (%) 33 | 4 25 80 47 11 Regions Visited 4 Branch Regions 2 Pre-discovered Areas . | . . . . . Known Exits Taken . | . . . . . Unknown Exits Taken 4 | 1 1 1 1 . Scrap Searched 1 | . . 1 . . Spaces Dug . | . . . . . Terrain Destroyed 22 | . . . 15 7 Melee . | . . . . . Projectile 17 | . . . 10 7 AOE 5 | . . . 5 . Terrain Rammed . | . . . . . Walls Destroyed . | . . . . . Machines Disabled . | . . . . . Actions | -11 -10 -10 -9 -9 --------- Run | Yrd Mat Min Mat Min Total 1601 | 114 234 510 680 63 Wait 44 | . 5 3 33 3 Move 1345 | 87 164 468 583 43 Hop . | . . . . . Pick Up 32 | 9 6 5 11 1 Fast Attach 3 | 2 . . 1 . Attach 13 | 5 3 1 4 . Detach . | . . . . . Swap 33 | 1 7 9 15 1 Drop 18 | . 3 6 8 1 Fire 107 | 10 46 18 21 12 Melee . | . . . . . Ram . | . . . . . Kick 6 | . . . 4 2 Crush . | . . . . . Escape Stasis . | . . . . . Rewire . | . . . . . Trap . | . . . . . Miscellaneous . | . . . . . Route ------- -11/Scrapyard -10/Materials -10/Mines -9/Materials -9/Mines History --------- Turn | Location | Event 5 | -11/Scrapyard | Discovered new exit (range 16) 142 | -11/Scrapyard | Entered Materials 316 | -10/Materials | Build established: Mutant 362 | -10/Materials | Lost 3 parts (1p2u) 486 | -10/Materials | Discovered new exit (range 6) 493 | -10/Materials | Entered Mines 503 | -10/Mines | Met a Derelict bent on vengeance 513 | -10/Mines | Discovered new exit (range 9) 520 | -10/Mines | Met a Derelict shopkeep closing up shop 569 | -10/Mines | Learned Materials emergency access door positions 668 | -10/Mines | Build established: Scavenger-Mutant 1123 | -10/Mines | Entered Materials 1123 | -9/Materials | Evolved 2 slots: Propulsion x1, Utility x1 1277 | -9/Materials | Repaired Shock Rifle 1539 | -9/Materials | Discovered new exit (range 7) 1571 | -9/Materials | Build established: Mutant 1964 | -9/Materials | Entered Mines 1977 | -9/Mines | Assembled infested the area 1982 | -9/Mines | Assisted by a Guerilla fighting off Assembled 2048 | -9/Mines | System corruption reached 10% 2052 | -9/Mines | Core integrity fell below 50% 2055 | -9/Mines | Core integrity fell below 20% 2056 | -9/Mines | Destroyed by D-53 Grenadier with Mini Grenade Launcher Last Messages --------------- 02038_ Bore Cannon destroyed. 02038_ System corrupted by crushing effect (+3). 02040_ Aluminum Leg destroyed. 02040_ Kicked as-54874. 02044_ Lgt. Angular Momentum Engine destroyed. 02044_ System corrupted by crushing effect (+3). 02045_ EQYNK